fUST/lending_fUST_20240126
["ID","MTS","AMOUNT","RATE_DAILY","PERIOD"]
[312801184,1706266068976,-500.0,0.00051506,120]
[312801185,1706266068998,-500.0,0.00051506,60]
[312801186,1706266069023,-500.0,0.00051506,120]
[312801187,1706266069046,-1840.49,0.00051506,120]
[312801188,1706266069069,-391.09758249,0.00051506,120]
[312801189,1706266069093,-961.11,0.00051506,120]
[312801190,1706266069116,-500.0,0.00051506,120]
[312801191,1706266069140,-500.0,0.00051506,120]
[312801192,1706266069162,-500.0,0.00052054,120]
[312801193,1706266069185,-2359.73,0.00052054,120]
[312801194,1706266069208,-500.0,0.00052054,120]
[312801195,1706266069232,-292.80348304,0.00052054,120]
[312801196,1706266069255,-500.0,0.00052054,120]
[312801197,1706266069278,-589.4,0.00052054,120]
[312801198,1706266069301,-500.0,0.00052054,120]
[312801199,1706266069324,-1841.75,0.00052054,120]
[312801200,1706266069347,-1251.88,0.00052054,120]
[312801201,1706266069370,-500.0,0.00052054,120]
[312801202,1706266069393,-500.0,0.00052054,120]
[312801203,1706266069415,-500.0,0.00052054,120]
[312801204,1706266069437,-500.0,0.00052054,120]
[312801205,1706266069460,-500.0,0.00052054,120]
[312801206,1706266069482,-1010.24,0.00052054,120]
[312801207,1706266069505,-500.0,0.00052054,120]
[312801208,1706266069529,-500.0,0.00052054,120]
[312801209,1706266069552,-500.0,0.00052054,120]
[312801210,1706266069576,-1032.6,0.00052054,120]
[312801211,1706266069601,-1773.75,0.00052054,120]
[312801212,1706266069624,-311.14871874,0.00052054,120]
[312801213,1706266072434,-400000.0,0.00045241,31]
[312801214,1706266081045,-400000.0,0.00045241,31]
[312801215,1706266084268,-38331.06989443,0.00045241,31]
[312801287,1706266239549,-3784.36471692,0.00032811,4]
[312801289,1706266239558,-154.92253873,0.00032811,4]
[312801291,1706266239568,-120.31058239,0.00032812,4]
[312801420,1706266241429,-793.96689936,0.00032812,4]
[312801422,1706266241439,-1666.11508192,0.00032815,2]
[312801424,1706266241448,-174.78862,0.00032915,2]
[312801426,1706266241457,-8175.947124,0.00033762,2]
[312801428,1706266241466,-195.54104758,0.00034524,2]
[312801430,1706266241475,-31345.86761001,0.00034526,2]
[312801497,1706266244924,-1006.45159994,0.00034526,2]
[312801503,1706266245377,-2654.98503078,0.00034526,2]
[312801504,1706266245389,-3945.27383307,0.00034526,2]
[312801505,1706266245398,-592.53064848,0.00035,2]
[312801506,1706266245407,-45.4576999,0.00035,4]
[312801507,1706266245437,-336.08446751,0.00035,4]
[312801508,1706266245446,-24.04130502,0.00036598,4]
[312801509,1706266245457,-180.9067991,0.00036598,4]
[312801510,1706266245466,-174.78862,0.00037402,2]
[312801511,1706266245476,-2349.06161764,0.00037469,3]
[312801512,1706266245485,-928.45786174,0.00037469,3]
[312801513,1706266245494,-343.09681091,0.0003799,4]
[312801514,1706266245503,-329.5386459,0.00037998,4]
[312801515,1706266245512,-576.0,0.000386,2]
[312801516,1706266245522,-166.9896716,0.000399,2]
[312801517,1706266245531,-2452.68,0.0003997,3]
[312801518,1706266245540,-646.72201428,0.00039978,3]
[312801534,1706266246408,-1335.924785,0.00039978,3]
[312801535,1706266246420,-1161.79548897,0.00039978,3]
[312801536,1706266246469,-103.53771175,0.00039978,3]
[312801537,1706266246478,-669.58428825,0.0003999,2]
[312801552,1706266769042,-680.48366856,0.00029998,2]
[312801553,1706266769064,-4386.51633144,0.00029999,2]
[312801554,1706266843310,-619.76686499,0.00029996,2]
[312801555,1706266843333,-2816.64859645,0.00029997,2]
[312801556,1706266843359,-6316.016728,0.00029998,2]
[312801557,1706266843382,-740.56781056,0.00029999,2]
[312801558,1706266906129,1051.23299016,0.00024,2]
[312801559,1706266912077,-1670.0,0.00024,2]
[312801560,1706266983393,-171.0,0.00023999,2]
[312801561,1706267051962,-91.4952811,0.00023999,2]
[312801562,1706267051985,-1735.5047189,0.00023999,2]
[312801565,1706267120613,-350.32772428,0.00023999,2]
[312801566,1706267120633,-1528.67227572,0.00023999,2]
[312801567,1706267190241,-298.71484792,0.00023999,2]
[312801568,1706267190261,-1114.82223446,0.00023999,2]
[312801569,1706267190283,-345.30103259,0.00023999,2]
[312801570,1706267190303,-76.06700984,0.00024,2]
[312801571,1706267190323,-5211.82979801,0.00029994,2]
[312801572,1706267190343,-680.48366856,0.00029994,2]
[312801573,1706267190364,-4210.67781867,0.00029995,2]
[312801574,1706267190386,-764.62995522,0.00029999,2]
[312801575,1706267190406,-2521.47363473,0.00029999,2]
[312801636,1706267432384,-155.67745124,0.00029899,2]
[312801639,1706267432393,-672.42859352,0.00029999,2]
[312801641,1706267432403,-1156.70625964,0.00029999,2]
[312801643,1706267432412,-764.62995522,0.00029999,2]
[312801645,1706267432421,-1738.65168644,0.0003,2]
[312801691,1706267439945,-416.90841114,0.0003,2]
[312801694,1706267439957,-167.511937,0.00030137,2]
[312801697,1706267439966,-171.478313,0.00030718,2]
[312801699,1706267439975,-243.016313,0.00030815,2]
[312801701,1706267439984,-3508.89818222,0.00031997,4]
[312801703,1706267439995,-914.27748175,0.00031998,4]
[312801705,1706267440004,-2000.0,0.00032,2]
[312801707,1706267440013,-2000.0,0.0003201,2]
[312801709,1706267440023,-2000.0,0.0003202,2]
[312801711,1706267440033,-2000.0,0.0003203,2]
[312801713,1706267440042,-2000.0,0.0003204,2]
[312801715,1706267440051,-2000.0,0.0003205,2]
[312801717,1706267440060,-2000.0,0.0003206,2]
[312801719,1706267440071,-2000.0,0.0003207,2]
[312801721,1706267440079,-2000.0,0.0003208,2]
[312801723,1706267440088,-2000.0,0.0003209,2]
[312801725,1706267440099,-2000.0,0.000321,2]
[312801726,1706267440108,-2000.0,0.0003211,2]
[312801728,1706267440118,-2000.0,0.0003212,2]
[312801730,1706267440127,-2000.0,0.0003213,2]
[312801731,1706267440136,-3833.587406,0.0003214,2]
[312801732,1706267440145,-235.0,0.00032811,2]
[312801733,1706267440154,-2000.0,0.00035,11]
[312801734,1706267440163,-592.53064848,0.00035,2]
[312801735,1706267440173,-2000.0,0.0003501,11]
[312801736,1706267440182,-2000.0,0.0003502,11]
[312801737,1706267440191,-2000.0,0.0003503,11]
[312801738,1706267440201,-2000.0,0.0003504,11]
[312801739,1706267440210,-2000.0,0.0003505,11]
[312801740,1706267440221,-2000.0,0.0003506,12]
[312801741,1706267440232,-2000.0,0.0003507,12]
[312801742,1706267440241,-2000.0,0.0003508,12]
[312801743,1706267440251,-2328.35,0.0003509,3]
[312801744,1706267440262,-2000.0,0.0003509,12]
[312801745,1706267440271,-2000.0,0.000351,12]
[312801746,1706267440280,-2000.0,0.0003511,12]
[312801748,1706267440289,-3986.98,0.0003511,3]
[312801749,1706267440298,-2000.0,0.0003512,12]
[312801751,1706267440307,-3322.49,0.0003512,3]
[312801753,1706267440318,-2000.0,0.0003513,12]
[312801755,1706267440327,-2000.0,0.0003514,12]
[312801756,1706267440336,-1123.22306641,0.0003515,12]
[312801758,1706267440348,-876.77693359,0.0003515,12]
[312801759,1706267440357,-2000.0,0.0003516,12]
[312801760,1706267440366,-254.36144494,0.00035168,4]
[312801761,1706267440375,-155.17557128,0.00035169,4]
[312801762,1706267440384,-630.6509605,0.0003517,12]
[312801763,1706267440395,-2841.6177265,0.0003517,12]
[312801764,1706267440404,-348.00111623,0.00037473,4]
[312801765,1706267440414,-126.6835181,0.00037474,3]
[312801766,1706267440515,-9703.31827234,0.00037474,3]
[312801767,1706267440525,-2094.50807981,0.00037478,2]
[312801768,1706267440534,-704.7184853,0.0003749,2]
[312801769,1706267440543,-977.70118808,0.00037616,2]
[312801770,1706267440553,-602.64406029,0.00037989,4]
[312801771,1706267440563,-548.09149313,0.0003799,4]
[312801772,1706267440572,-12267.60075838,0.00037991,5]
[312801773,1706267440581,-777.0,0.0003839,4]
[312801774,1706267440591,-166.9896716,0.00039898,2]
[312801775,1706267440601,-1275.30456726,0.00039978,2]
[312801776,1706267440610,-189.13943648,0.00039989,4]
[312801777,1706267440618,-2717.39840144,0.00039989,4]
[312801778,1706267440627,-979.69968346,0.0003999,4]
[312801779,1706267440636,-369.89318435,0.0003999,4]
[312801780,1706267440646,-454.77590654,0.0003999,4]
[312801783,1706267440654,-683.87536543,0.0003999,4]
[312801784,1706267440663,-164.04448597,0.0003999,4]
[312801786,1706267440672,-850.30063575,0.00039997,4]
[312801788,1706267440681,-2226.82810653,0.00039998,2]
[312801790,1706267440691,-1357.1112707,0.00039998,4]
[312801792,1706267440700,-162.78630134,0.00039998,6]
[312801794,1706267440709,-790.73660077,0.00039998,4]
[312801804,1706267442944,-1306.80459752,0.00039998,4]
[312801805,1706267442954,-161.07216613,0.00039998,4]
[312801807,1706267442964,-926.21194152,0.00039998,4]
[312801810,1706267442974,-892.4665851,0.00039998,4]
[312801812,1706267442985,-1527.5651267,0.00039998,4]
[312801815,1706267442994,-426.10577832,0.00039998,2]
[312801817,1706267443002,-616.92156387,0.00039998,4]
[312801820,1706267443012,-155.13943306,0.00039998,4]
[312801824,1706267443021,-262.172109,0.00039998,4]
[312801826,1706267443031,-1579.8258689,0.00039998,4]
[312801829,1706267443040,-155.1030093,0.00039998,4]
[312801832,1706267443048,-155.15982638,0.00039998,4]
[312801835,1706267443058,-156.01470538,0.00039998,4]
[312801837,1706267443067,-155.10070335,0.00039998,4]
[312801839,1706267443076,-1221.35607009,0.00039998,4]
[312801841,1706267443084,-746.9798421,0.00039998,4]
[312801843,1706267443093,-4830.64923838,0.00039998,4]
[312801845,1706267443102,-244.18511034,0.00039999,4]
[312801847,1706267443112,-213.48757656,0.00039999,4]
[312801849,1706267443121,-344.27595822,0.00039999,2]
[312801851,1706267443130,-37000.0,0.0004,120]
[312801853,1706267443140,-160.00064943,0.0004,4]
[312801855,1706267443149,-154.860625,0.0004,4]
[312801857,1706267443157,-2000.0,0.0004,27]
[312801859,1706267443166,-2000.0,0.0004001,27]
[312801860,1706267443175,-2000.0,0.0004002,27]
[312801861,1706267443184,-3538.395665,0.0004003,27]
[312801862,1706267443193,-150.1,0.00040359,2]
[312801863,1706267443201,-200.0,0.000405,4]
[312801864,1706267443210,-500.0,0.00040597,120]
[312801865,1706267443219,-500.0,0.00040597,120]
[312801866,1706267443228,-500.0,0.00040597,120]
[312801867,1706267443237,-500.0,0.00040597,120]
[312801868,1706267443246,-500.0,0.00040597,120]
[312801869,1706267443255,-500.0,0.00040597,120]
[312801870,1706267443264,-575.32,0.00040597,120]
[312801871,1706267443273,-313.6891721,0.00040999,3]
[312801872,1706267443282,-959.6323207,0.00041,2]
[312801873,1706267443291,-150.9022017,0.00041,10]
[312801874,1706267443300,-9285.21102855,0.00041,2]
[312801875,1706267443309,-151.91582442,0.00041095,7]
[312801876,1706267443319,-500.0,0.00041095,2]
[312801877,1706267443328,-163.189884,0.00041136,30]
[312801878,1706267443337,-240.228781,0.00041136,30]
[312801879,1706267443346,-163.343133,0.00041136,30]
[312801881,1706267443355,-341.50509185,0.00041185,7]
[312801882,1706267443363,-262.81834474,0.00041363,7]
[312801883,1706267443372,-2915.39400932,0.00041377,4]
[312801884,1706267443381,-166.4299658,0.000414,45]
[312801885,1706267443391,-341.50509185,0.00041402,7]
[312801886,1706267443400,-150.0,0.000415,17]
[312801887,1706267443409,-835.81519392,0.00041595,4]
[312801888,1706267443417,-453.20212845,0.00041595,4]
[312801889,1706267443426,-301.77611122,0.00041595,4]
[312801890,1706267443436,-169.37825405,0.00041595,4]
[312801891,1706267443445,-574.63018738,0.00041595,2]
[312801892,1706267443454,-155.09219294,0.00041595,4]
[312801893,1706267443462,-298.52344794,0.00041595,4]
[312801895,1706267443472,-240.22878,0.00041651,30]
[312801896,1706267443481,-970.72012283,0.00041697,2]
[312801897,1706267443490,-203.82600909,0.00041795,4]
[312801898,1706267443499,-244.0196569,0.00041795,4]
[312801899,1706267443508,-728.25440731,0.00041795,4]
[312801900,1706267443517,-324.57011464,0.00041795,2]
[312801901,1706267443526,-239.76,0.00041795,4]
[312801902,1706267443537,-155.28863475,0.00041795,4]
[312801903,1706267443546,-2718.42966332,0.00041795,5]
[312801904,1706267443555,-542.98279954,0.00041795,4]
[312801905,1706267443563,-4280.31162628,0.00041797,7]
[312801906,1706267443578,-2270.65747099,0.00041797,7]
[312801907,1706267443589,-644.73653833,0.00041797,7]
[312801941,1706267446811,-1.86763942,0.00041797,7]
[312802040,1706268638841,-500.177088,0.00028268,2]
[312802042,1706268638853,-5211.82979801,0.00028269,2]
[312802045,1706268638874,-154.90705577,0.0002827,2]
[312802047,1706268638890,-3508.89818222,0.0002827,2]
[312802048,1706268638902,-622.6722025,0.00028271,2]
[312802050,1706268638914,-619.76686499,0.00029253,2]
[312802052,1706268638926,-680.48366856,0.00029254,2]
[312802054,1706268638939,-2816.64859645,0.00029255,2]
[312802058,1706268639115,-21697.17964081,0.00029255,2]
[312802059,1706268639126,-24900.0,0.00029259,2]
[312802060,1706268639137,-2275.0505183,0.00029311,2]
[312802061,1706268639148,-156.59156612,0.00030205,4]
[312802062,1706268639159,-545.186256,0.00030209,2]
[312802063,1706268639170,-2692.29049258,0.00030413,4]
[312802064,1706268639180,-172.7581314,0.00030416,2]
[312802065,1706268639190,-154.8915759,0.00031214,4]
[312802066,1706268639201,-524.5023181,0.00031219,2]
[312802067,1706268639212,-13080.1851524,0.00031402,2]
[312802068,1706268639223,-250.0,0.00031486,2]
[312802069,1706268639235,-1358.388351,0.00031511,2]
[312802070,1706268639246,-177.569411,0.00031677,2]
[312802071,1706268639256,-154.8915759,0.00032,4]
[312802072,1706268639268,-1258.9700163,0.00032262,4]
[312802073,1706268639280,-329.63381135,0.00032263,4]
[312802074,1706268639295,-199.91055574,0.00034847,2]
[312802075,1706268639306,-211.96787078,0.00035,4]
[312802076,1706268639327,-20066.52016197,0.00037498,3]
[312802077,1706268639341,-232.11446544,0.00037498,2]
[312802078,1706268639352,-491.50008952,0.00037498,2]
[312802079,1706268639364,-978.2579722,0.00037616,2]
[312802080,1706268639375,-1000.0,0.00039089,2]
[312802081,1706268639385,-1000.0,0.00039157,2]
[312802082,1706268639396,-164.445356,0.00039266,2]
[312802083,1706268639406,-6990.46,0.00039677,3]
[312802084,1706268639420,-4161.5884891,0.00039697,3]
[312802128,1706268643840,-237.83279174,0.00028267,2]
[312802130,1706268643856,-2816.64859645,0.00028267,2]
[312802132,1706268643868,-1475.93973209,0.00039697,3]
[312802134,1706268643881,-6561.87663086,0.00039697,3]
[312802136,1706268643902,-134.42514795,0.00039697,3]
[312802138,1706268643913,-507.39560684,0.00039707,5]
[312802139,1706268643928,-268.24199987,0.00039707,5]
[312802146,1706268646083,-1923.02127082,0.00039707,5]
[312802147,1706268646095,-9568.94188085,0.00039707,5]
[312802148,1706268646106,-150.0,0.0004,27]
[312802149,1706268646116,-777.0,0.00040125,2]
[312802151,1706268646126,-189.49088799,0.00040377,2]
[312802152,1706268646136,-200.0,0.000405,4]
[312802153,1706268646146,-5000.0,0.00040826,7]
[312802154,1706268646155,-500.0,0.00041095,2]
[312802155,1706268646165,-150.89437394,0.00041138,2]
[312802156,1706268646175,-19706.16354589,0.00041375,4]
[312802157,1706268646185,-309.7831518,0.00041375,4]
[312802159,1706268646196,-4104.72771243,0.00041377,4]
[312802160,1706268646207,-500.0,0.00041613,6]
[312802162,1706268646217,-191.917569,0.000417,17]
[312802163,1706268646227,-215.96235317,0.00041722,7]
[312802165,1706268646237,-1457.49093401,0.00041784,2]
[312802166,1706268646247,-508.62808306,0.00041795,2]
[312802167,1706268646257,-273.36097722,0.00041795,4]
[312802168,1706268646267,-259.00733795,0.00041795,4]
[312802169,1706268646277,-1310.30020742,0.00041795,4]
[312802170,1706268646290,-155.15670886,0.00041795,4]
[312802171,1706268646299,-658.18472408,0.00041795,4]
[312802173,1706268646309,-477.37394316,0.00041795,4]
[312802174,1706268646324,-155.31610396,0.00041795,4]
[312802175,1706268646334,-2039.5598213,0.00041795,4]
[312802176,1706268646345,-678.88445844,0.00041795,4]
[312802177,1706268646355,-161.07323855,0.00041795,4]
[312802178,1706268646366,-1741.4785695,0.00041795,4]
[312802179,1706268646376,-563.83287633,0.00041795,4]
[312802180,1706268646385,-4815.22334348,0.00041796,4]
[312802181,1706268646395,-61054.24622797,0.00041797,7]
[312802182,1706268646405,-1174.09590054,0.00041797,2]
[312802183,1706268646415,-4978.23690085,0.00041797,4]
[312802184,1706268646424,-519.74389319,0.00041797,4]
[312802185,1706268646433,-636.22448508,0.00041797,4]
[312802186,1706268646443,-1114.65598908,0.00041797,4]
[312802187,1706268646452,-684.06765609,0.00041797,4]
[312802188,1706268646462,-620.37329655,0.00041797,4]
[312802189,1706268646471,-548.10984714,0.00041797,4]
[312802190,1706268646481,-1109.98253014,0.00041797,4]
[312802192,1706268646490,-154.90705577,0.00041797,4]
[312802193,1706268646499,-157.08029083,0.00041797,4]
[312802194,1706268646509,-1855.23942684,0.00041797,4]
[312802195,1706268646518,-290.14513525,0.00041797,4]
[312802196,1706268646528,-343.19914178,0.00041797,4]
[312802197,1706268646538,-206.2371887,0.00041797,4]
[312802198,1706268646548,-191.40104537,0.00041797,4]
[312802199,1706268646558,-156.86488031,0.00041797,4]
[312802200,1706268646569,-537.44070193,0.00041797,4]
[312802201,1706268646581,-615.00395477,0.00041797,4]
[312802202,1706268646591,-938.0,0.000418,2]
[312802203,1706268646600,-309.84510842,0.000418,4]
[312802204,1706268646609,-163.343131,0.00041822,30]
[312802205,1706268646618,-301.78874788,0.0004183,4]
[312802206,1706268646628,-40158.0192908,0.0004198,10]
[312802207,1706268646652,-1968.91554222,0.0004198,10]
[312802208,1706268646666,-10848.25377445,0.0004198,10]
[312802209,1706268646675,-765.13820039,0.0004198,2]
[312802210,1706268646685,-7408.0,0.00041999,7]
[312802211,1706268646694,-529.23889569,0.00042,30]
[312802212,1706268646703,-11776.61589649,0.00042,7]
[312802213,1706268646715,-15550.51517242,0.00042,7]
[312802215,1706268647030,-104.7520018,0.00042,7]
[312802216,1706268647041,-2799.9802892,0.00042,7]
[312802217,1706268647051,-515.83678647,0.00042141,2]
[312802218,1706268647061,-240.22878,0.00042165,30]
[312802219,1706268647075,-1266.28600174,0.000425,20]
[312802220,1706268647084,-2833.30231,0.000425,2]
[312802221,1706268647094,-163.343131,0.00042508,30]
[312802222,1706268647103,-603.57749575,0.00042533,7]
[312802223,1706268647112,-240.22878,0.00042679,30]
[312802224,1706268647121,-160.0,0.00042757,3]
[312802225,1706268647130,-5654.80896284,0.00042998,4]
[312802256,1706269462018,-21842.0,0.00029252,2]
[312802278,1706269719331,-19706.0,0.0002921,2]
[312802428,1706269837937,-1061.75508328,0.00029202,5]
[312802435,1706269837997,-1649.76107311,0.00029202,5]
[312802436,1706269838006,-1828.13595294,0.00029202,2]
[312802437,1706269838016,-2003.83335234,0.00029202,2]
[312802438,1706269838025,-237.83279174,0.00029203,2]
[312802439,1706269838035,-2816.64859645,0.00029203,2]
[312802440,1706269838044,-21697.17964081,0.00029203,2]
[312802441,1706269838054,-19712.13660076,0.00029204,2]
[312802442,1706269838064,-619.76686499,0.00029204,2]
[312802443,1706269838073,-679.14790534,0.00029204,2]
[312802445,1706269838083,-154.93802479,0.00029204,2]
[312802447,1706269838092,-416.81424,0.00029205,2]
[312802449,1706269838101,-5211.82979801,0.00029205,2]
[312802450,1706269838111,-400.52132555,0.0002921,2]
[312802451,1706269838120,-272.593128,0.00029233,2]
[312802452,1706269838129,-3058.0,0.00029252,2]
[312802453,1706269838139,-159.897758,0.00030137,2]
[312802454,1706269838148,-10278.19,0.00030481,3]
[312802455,1706269838157,-1776.45706022,0.0003051,4]
[312802456,1706269838166,-10037.80252583,0.00030511,4]
[312802457,1706269838175,-12355.64547127,0.00030512,2]
[312802538,1706269841956,-7558.2238579,0.00030512,2]
[312802539,1706269842015,-2721.70293243,0.00030512,2]
[312802540,1706269842026,-10738.33857932,0.00030512,2]
[312802541,1706269842037,-2052.25374495,0.00030512,2]
[312802569,1706269843054,-17183.72809071,0.00030512,2]
[312802570,1706269843066,-3859.74887092,0.00030512,2]
[312802571,1706269843075,-158.1309441,0.00031579,2]
[312802572,1706269843085,-211.96787078,0.00035,4]
[312802573,1706269843094,-166.98967161,0.00037371,2]
[312802574,1706269843103,-12342.58437468,0.00037471,3]
[312802575,1706269843115,-47.30749778,0.00037471,3]
[312802576,1706269843123,-1003.3260081,0.00037471,2]
[312802577,1706269843132,-7989.59765038,0.00037472,3]
[312802578,1706269843144,-136.65330544,0.00037472,3]
[312802579,1706269843153,-330.76694482,0.0003778,2]
[312802580,1706269843163,-592.53064848,0.0003922,2]
[312802581,1706269843173,-155.38898574,0.00039228,4]
[312802583,1706269843182,-319.49411877,0.0003923,4]
[312802584,1706269843191,-558.009413,0.000399,21]
[312802585,1706269843201,-300.0,0.0004,4]
[312802586,1706269843211,-2000.0,0.0004,27]
[312802588,1706269843220,-2000.0,0.0004001,27]
[312802589,1706269843230,-2000.0,0.0004002,27]
[312802590,1706269843240,-3388.395666,0.0004003,27]
[312802591,1706269843250,-150.1,0.00040485,2]
[312802592,1706269843259,-200.0,0.000405,4]
[312802593,1706269843268,-500.0,0.00040797,120]
[312802594,1706269843278,-500.0,0.00040797,120]
[312802595,1706269843287,-500.0,0.00040797,120]
[312802596,1706269843297,-500.0,0.00040797,120]
[312802597,1706269843307,-500.0,0.00040797,120]
[312802598,1706269843316,-500.0,0.00040797,120]
[312802599,1706269843325,-575.32,0.00040797,120]
[312802600,1706269843334,-502.28125543,0.00040845,5]
[312802601,1706269843344,-344.27916312,0.00040848,5]
[312802617,1706269846061,-2.4269626,0.00040848,5]
[312802631,1706270751433,-200.0,0.00029181,2]
[312802649,1706270922335,-679.14790534,0.00029171,2]
[312802650,1706270922360,-2816.64859645,0.00029171,2]
[312802651,1706270922381,-416.81424,0.00029172,2]
[312802652,1706270922403,-619.76686499,0.00029172,2]
[312802653,1706270922425,-154.90705577,0.00029173,2]
[312802654,1706270922448,-5211.82979801,0.00029173,2]
[312802655,1706270922471,-1628.13595294,0.00029181,2]
[312802656,1706270922493,-1487.40101346,0.00029209,2]
[312802657,1706270922514,-159.897758,0.00030137,2]
[312802658,1706270922537,-408.889692,0.00031736,2]
[312802659,1706270922559,-24014.5615064,0.00032572,2]
[312802660,1706270922581,-166.666666,0.00033566,2]
[312802661,1706270922605,-613.22157765,0.00034847,2]
[312802662,1706270922629,-1866.85310857,0.00037391,2]
[312802663,1706270922652,-2124.90539439,0.00037391,2]
[312802664,1706270922676,-3503.7855159,0.00037391,3]
[312802665,1706270922699,-1307.56600213,0.00037776,2]
[312802666,1706270922722,-2819.001352,0.00038806,5]
[312802667,1706270933751,-9448.59940638,0.00038806,5]
[312802668,1706270933774,-777.0,0.00039214,2]
[312802669,1706270933796,-502.28125543,0.00039879,5]
[312802670,1706270933821,-558.009413,0.000399,21]
[312802671,1706270933845,-8876.74,0.0003999,3]
[312802672,1706270933873,-500.0,0.0004,10]
[312802673,1706270933898,-6613.22833898,0.0004,120]
[312802674,1706270933923,-2000.0,0.0004,27]
[312802675,1706270957416,-2000.0,0.0004001,27]
[312802676,1706270957440,-2000.0,0.0004002,27]
[312802677,1706270957463,-300.0,0.00040029,4]
[312802678,1706270957488,-3388.395666,0.0004003,27]
[312802679,1706270957511,-169.57429663,0.00040483,4]
[312802680,1706270957533,-150.1,0.00040485,2]
[312802681,1706270957555,-200.0,0.000405,4]
[312802682,1706270957577,-341.50509185,0.0004077,2]
[312802683,1706270957599,-1457.49093401,0.00040836,2]
[312802684,1706270957622,-636.22448508,0.00040848,4]
[312802685,1706270957645,-584.34849319,0.00040848,4]
[312802686,1706270957667,-519.74389319,0.00040848,4]
[312802687,1706270957689,-614.72971712,0.00040904,2]
[312802688,1706270957711,-150.9022017,0.00041,10]
[312802689,1706270957732,-9285.21102855,0.00041,2]
[312802690,1706270957754,-151.91582442,0.00041095,7]
[312802691,1706270957778,-500.0,0.00041095,2]
[312802692,1706270957800,-160.15252,0.00041136,30]
[312802693,1706270957823,-163.343133,0.00041136,30]
[312802694,1706270957857,-163.189884,0.00041136,30]
[312802695,1706270957885,-166.4299658,0.000414,45]
[312802696,1706270958055,-576.0,0.000414,30]
[312802697,1706270958079,-2915.39400932,0.00041558,4]
[312802698,1706270958102,-2123.96368238,0.00041558,4]
[312802699,1706270958123,-156.25598884,0.00041797,4]
[312802700,1706270958148,-801.66618629,0.00041797,2]
[312802701,1706270958171,-970.72012283,0.0004188,2]
[312802702,1706270958192,-2807.11854578,0.00041936,4]
[312802703,1706270958214,-154.93802479,0.00041976,4]
[312802704,1706270958237,-155.38898574,0.00041977,4]
[312802705,1706270958259,-592.53064848,0.00041977,2]
[312802706,1706270958281,-2417.2417052,0.00041978,4]
[312802707,1706270958302,-728.25440731,0.00041978,4]
[312802708,1706270958323,-324.57011464,0.00041978,2]
[312802709,1706270958344,-244.0196569,0.00041978,4]
[312802710,1706270958366,-155.33530448,0.00041978,4]
[312802711,1706270958390,-161.07323855,0.00041978,4]
[312802712,1706270958413,-2663.97846003,0.00041978,4]
[312802713,1706270958434,-2714.9318783,0.00041978,5]
[312802714,1706270958456,-476.13613775,0.00041978,4]
[312802715,1706270958478,-154.9690062,0.00041978,4]
[312802716,1706270958500,-1064.05593202,0.00041978,30]
[312802717,1706270958521,-319.49411877,0.00041978,4]
[312802718,1706270958544,-951.65737426,0.00041978,4]
[312802719,1706270958566,-540.96112462,0.00041978,4]
[312802720,1706270958587,-159.87293361,0.00041978,4]
[312802721,1706270958609,-8002.80967065,0.00041978,4]
[312802722,1706270958632,-333.451392,0.00041978,4]
[312802723,1706270958654,-4324.98824791,0.00041978,4]
[312802724,1706270958677,-600.0,0.00041979,7]
[312802725,1706270958699,-600.0,0.00041979,7]
[312802726,1706270958721,-600.0,0.00041979,7]
[312802727,1706270958744,-600.0,0.00041979,7]
[312802728,1706270958766,-600.0,0.00041979,7]
[312802729,1706270958788,-2039.05381066,0.00041979,4]
[312802730,1706270958809,-313.6891721,0.00041979,3]
[312802731,1706270958831,-84552.22298505,0.0004198,10]
[312802732,1706270960655,461.67668995,0.000384,4]
[312802733,1706270970970,257.086226,0.0004,4]
[312802734,1706270980179,12267.60075838,0.00038,5]
[312802735,1706270980466,1275.30456726,0.00039988,2]
[312802736,1706270982883,636.22448508,0.0004,4]
[312802737,1706270998179,3588.57082209,0.00038,5]
[312802738,1706271000471,727.68402407,0.00039988,2]
[312802739,1706271004875,636.22448508,0.0004,4]
[312802740,1706271022879,636.22448508,0.0004,4]